bitfinex/quotes_BTCUSD_20251224
["timestamp","ask_amount","ask_price","bid_price","bid_amount"]
[1766589685717,0.01151556,86839.0,86834.0,0.000216]
[1766589685718,4.6e-07,86835.0,86834.0,0.000216]
[1766589685926,0.01151622,86834.0,86829.0,6.2e-07]
[1766589686129,0.01151655,86835.0,86829.0,6.2e-07]
[1766589686352,0.01151622,86834.0,86829.0,6.2e-07]
[1766589686558,0.0116,86837.0,86834.0,0.000216]
[1766589686756,0.0116,86836.0,86834.0,0.000216]
[1766589687212,0.01151596,86836.0,86829.0,6.2e-07]
[1766589687416,0.0116,86835.0,86829.0,6.2e-07]
[1766589687825,0.02311609,86835.0,86829.0,6.2e-07]
[1766589687978,0.0116,86835.0,86829.0,6.2e-07]
[1766589688180,0.02311609,86835.0,86829.0,6.2e-07]
[1766589688389,0.08069655,86835.0,86834.0,0.00044306]
[1766589688567,0.02311609,86835.0,86834.0,6e-08]
[1766589688778,0.06918046,86835.0,86834.0,6e-08]
[1766589690286,0.05757891,86838.0,86834.0,6e-08]
[1766589690491,0.05757649,86841.0,86835.0,0.000109]
[1766589690769,0.0116,86840.0,86829.0,6.2e-07]
[1766589691068,0.01151635,86833.0,86829.0,6.2e-07]
[1766589691373,0.0116,86832.0,86829.0,6.2e-07]
[1766589691550,0.05758321,86831.0,86829.0,6.2e-07]
[1766589692336,0.48599309,86816.0,86799.0,0.0576042]
[1766589692553,0.05759651,86811.0,86797.0,0.01152113]
[1766589692782,0.0001,86814.0,86811.0,0.000109]
[1766589692990,0.0001,86814.0,86811.0,0.0003554]
[1766589692991,0.01151887,86814.0,86811.0,0.0003554]
[1766589693423,0.06911339,86814.0,86811.0,0.0003554]
[1766589693795,0.01151941,86810.0,86798.0,0.011521]
[1766589693997,0.0116,86809.0,86790.0,0.01152206]
[1766589694219,0.0116,86809.0,86787.0,0.01152246]
[1766589694220,0.01152113,86797.0,86787.0,0.01152246]
[1766589694427,0.0116,86797.0,86789.0,0.01152219]
[1766589694862,0.01152126,86796.0,86781.0,0.01192325]
[1766589695071,0.01152246,86787.0,86781.0,0.0004]
[1766589695279,0.08073496,86787.0,86781.0,0.0004]
[1766589695493,0.06913055,86793.0,86787.0,0.000219]
[1766589695672,0.01152193,86791.0,86781.0,0.0004]
[1766589695886,0.02312179,86792.0,86781.0,0.0004]
[1766589696226,0.0116,86792.0,86780.0,0.0002]
[1766589696428,0.01152206,86790.0,86780.0,0.0002]
[1766589696554,0.01152219,86789.0,86780.0,0.0002]
[1766589696755,0.01152246,86787.0,86780.0,0.0002]
[1766589696956,0.01187524,86810.0,86797.0,0.01152113]
[1766589697266,0.0116,86809.0,86801.0,0.0115206]
[1766589697466,0.0116,86809.0,86799.0,0.05760384]
[1766589697604,0.0116,86808.0,86800.0,0.01152073]
[1766589697818,0.0112,86808.0,86800.0,0.01152073]
[1766589698186,0.08031848,86808.0,86798.0,0.00011]
[1766589698384,0.0115198,86807.0,86798.0,0.00011]
[1766589698632,0.46061652,86841.0,86803.0,0.01152033]
[1766589698843,0.11396742,86895.0,86811.0,0.01151927]
[1766589698844,0.05758726,86825.0,86811.0,0.01151927]
[1766589699051,0.01171,86818.0,86811.0,0.01151927]
[1766589699250,0.01171,86818.0,86814.0,0.01151887]
[1766589699660,0.00011,86818.0,86815.0,0.01151874]
[1766589699988,0.06910234,86828.0,86812.0,0.01151914]
[1766589699989,0.01151781,86822.0,86812.0,0.01151914]
[1766589700273,0.01151781,86822.0,86809.0,0.00011]
[1766589700274,0.000549,86812.0,86809.0,0.00011]
[1766589700465,0.01151887,86814.0,86809.0,0.00011]
[1766589700680,0.01151901,86813.0,86800.0,0.0116]
[1766589701091,0.23037117,86817.0,86800.0,0.0116]
[1766589701092,0.05759382,86815.0,86801.0,0.06912362]
[1766589701371,0.000439,86800.0,86786.0,0.01152259]
[1766589701527,0.02312087,86799.0,86787.0,0.01152246]
[1766589701756,0.06912695,86797.0,86786.0,0.00035583]
[1766589701965,0.01152126,86796.0,86786.0,0.00035583]
[1766589702175,0.01152166,86793.0,86786.0,0.00035583]
[1766589702360,0.011521,86798.0,86786.0,0.00035583]
[1766589702554,0.01152113,86797.0,86786.0,0.00035583]
[1766589702808,0.011521,86798.0,86787.0,0.01152246]
[1766589702970,0.08072582,86799.0,86787.0,0.05761226]
[1766589703179,0.000439,86787.0,86780.0,0.0002]
[1766589703493,0.05761456,86784.0,86780.0,0.0002]
[1766589703693,0.05761456,86784.0,86750.0,0.67643473]
[1766589703694,0.01152339,86780.0,86762.0,0.01152578]
[1766589703875,0.01152352,86779.0,86768.0,0.01152498]
[1766589704073,0.01152418,86774.0,86758.0,0.04608]
[1766589704277,0.0116,86778.0,86766.0,0.01152525]
[1766589704571,0.0116,86778.0,86769.0,0.05762417]
[1766589704755,0.02312365,86778.0,86767.0,0.06915004]
[1766589704955,0.01152392,86776.0,86764.0,0.05762746]
[1766589705207,0.0116,86778.0,86769.0,0.01152485]
[1766589705568,0.0116,86778.0,86771.0,0.01152458]
[1766589705772,0.0116,86778.0,86771.0,0.0576228]
[1766589705944,0.0116,86778.0,86768.0,0.01152498]
[1766589706130,0.0116,86778.0,86769.0,0.06914899]
[1766589706327,0.0116,86778.0,86768.0,0.01152498]
[1766589706584,0.0116,86778.0,86767.0,0.05762523]
[1766589706585,0.01152432,86773.0,86754.0,0.01152684]
[1766589706713,0.000239,86768.0,86762.0,0.01152578]
[1766589706929,0.01152472,86770.0,86759.0,0.01352618]
[1766589707131,0.01152485,86769.0,86759.0,0.002]
[1766589707589,0.4316,86761.0,86747.0,0.05763825]
[1766589707754,0.0116,86760.0,86751.0,0.01152724]
[1766589708099,0.0116,86760.0,86750.0,0.02402806]
[1766589708290,0.01152525,86766.0,86750.0,0.02402806]
[1766589708291,0.0116,86761.0,86754.0,0.01152684]
[1766589708490,0.01105,86761.0,86758.0,0.01152631]
[1766589708647,0.01105,86761.0,86755.0,0.01152671]
[1766589709002,0.4316,86778.0,86750.0,0.01250069]
[1766589709216,0.0116,86778.0,86767.0,0.06915028]
[1766589709418,0.0116,86777.0,86773.0,0.00193166]
[1766589709619,0.0116,86776.0,86772.0,0.01152445]
[1766589709769,0.01152352,86779.0,86768.0,0.01152498]
[1766589709980,0.01152379,86777.0,86767.0,0.01152511]
[1766589710204,0.01152418,86774.0,86762.0,0.01152578]
[1766589710432,0.4316,86773.0,86762.0,0.01152578]
[1766589710614,0.4316,86773.0,86762.0,0.06915458]
[1766589710794,0.4316,86772.0,86760.0,0.0116]
[1766589710997,0.00055,86760.0,86753.0,0.01152697]
[1766589711204,0.00055,86760.0,86750.0,0.02445609]
[1766589711440,0.4316,86759.0,86751.0,0.06916338]
[1766589711674,0.4316,86759.0,86750.0,0.02445609]
[1766589711903,0.01152684,86754.0,86750.0,0.02445609]
[1766589712105,0.01152684,86754.0,86735.0,0.04608]
[1766589712106,0.00055,86750.0,86745.0,0.01152804]
[1766589712335,0.00055,86750.0,86734.0,0.2305883]
[1766589712336,0.02312751,86749.0,86738.0,0.01152897]
[1766589712694,0.0116,86752.0,86749.0,0.000549]
[1766589712943,0.2304902,86772.0,86749.0,0.00065552]
[1766589713102,0.4316,86740.0,86732.0,0.01152976]
[1766589713342,0.4316,86759.0,86727.0,0.0116]
[1766589713552,0.0116,86758.0,86748.0,0.05763771]
[1766589713767,0.01152777,86747.0,86744.0,0.0116]
[1766589714001,0.01152777,86747.0,86730.0,0.0203554]
[1766589714002,0.000549,86748.0,86741.0,0.05764286]
[1766589714197,0.01207664,86748.0,86740.0,0.0116]
[1766589714406,0.0115279,86746.0,86740.0,0.0116]
[1766589714560,0.01152764,86748.0,86737.0,0.0115291]
[1766589714929,0.06917021,86743.0,86735.0,0.0116]
[1766589715141,0.4316,86745.0,86733.0,0.0116]
[1766589715322,0.0115283,86743.0,86733.0,0.0116]
[1766589715559,0.0115283,86743.0,86730.0,0.03188543]
[1766589715560,0.01152804,86745.0,86734.0,0.0115295]
[1766589715771,0.01152804,86745.0,86730.0,0.03188543]
[1766589715772,0.02312844,86742.0,86730.0,0.03188543]
[1766589715986,0.02312844,86742.0,86734.0,0.0115295]
[1766589715987,0.0116,86742.0,86734.0,0.0115295]
[1766589716409,0.01152817,86744.0,86741.0,0.0029459]
[1766589716617,0.0115283,86743.0,86732.0,0.01152976]
[1766589716846,0.01152897,86738.0,86731.0,0.0116]
[1766589717056,0.01152897,86738.0,86731.0,0.01105]
[1766589717269,0.01152844,86742.0,86731.0,0.0225799]
[1766589717480,0.01152857,86741.0,86731.0,0.0225799]
[1766589717668,0.01152883,86739.0,86731.0,0.01105]
[1766589717807,0.0115291,86737.0,86731.0,0.01105]
[1766589718218,0.0115291,86737.0,86731.0,0.0061817]
[1766589718219,0.0691749,86737.0,86731.0,0.0061817]
[1766589718419,0.01152923,86736.0,86730.0,0.0203554]
[1766589718623,0.01152923,86736.0,86725.0,0.06918408]
[1766589718624,0.000549,86730.0,86716.0,0.0116]
[1766589718827,0.06918185,86728.0,86716.0,0.0116]
[1766589719032,0.0691818,86728.0,86716.0,0.0116]
[1766589719234,0.01153016,86729.0,86716.0,0.0116]
[1766589719235,0.40355,86727.0,86717.0,0.01153176]
[1766589719462,0.40355,86727.0,86716.0,0.08079136]
[1766589719463,0.40355,86727.0,86723.0,0.01153096]
[1766589719665,0.40355,86727.0,86719.0,0.06918866]
[1766589719825,0.000549,86723.0,86715.0,0.01153203]
[1766589720026,0.40355,86720.0,86708.0,0.24244619]
[1766589720348,0.0116,86724.0,86708.0,0.01178833]
[1766589720565,0.04612,86741.0,86731.0,0.0115299]
[1766589720698,0.01152817,86744.0,86734.0,0.0115295]
[1766589720874,0.01152817,86744.0,86732.0,0.01152976]
[1766589720875,0.02291738,86737.0,86732.0,0.01152976]
[1766589721083,0.4150795,86734.0,86721.0,0.01153123]
[1766589721307,0.02291738,86723.0,86713.0,0.01153229]
[1766589721509,0.08078709,86722.0,86708.0,0.01178833]
[1766589721809,0.000549,86713.0,86710.0,0.01153269]
[1766589722022,0.0116,86722.0,86710.0,0.05766317]
[1766589722265,0.05764712,86735.0,86722.0,0.00055]
[1766589722482,0.0116,86733.0,86731.0,0.05764933]
[1766589722689,0.0116,86733.0,86730.0,0.01153003]
[1766589722911,0.0116,86733.0,86729.0,0.01153016]
[1766589723128,0.0116,86735.0,86731.0,0.0115299]
[1766589723327,0.0116,86735.0,86730.0,0.01153003]
[1766589723469,0.0116,86735.0,86731.0,0.0115299]
[1766589723678,0.000549,86731.0,86727.0,0.01153043]
[1766589723901,0.000549,86731.0,86728.0,0.06918133]
[1766589724190,0.01152697,86753.0,86741.0,0.01152857]
[1766589724356,0.01152697,86753.0,86720.0,0.34593816]
[1766589724357,0.00011,86741.0,86739.0,0.01152883]
[1766589724533,0.03451738,86750.0,86741.0,0.00011]
[1766589724534,0.02291738,86750.0,86741.0,0.00011]
[1766589724837,0.0116,86749.0,86739.0,0.00035605]
[1766589725084,0.0116,86749.0,86739.0,0.01188488]
[1766589725226,0.02312751,86749.0,86739.0,0.01188488]
[1766589725433,0.05763983,86746.0,86739.0,0.00035605]
[1766589725632,0.0115283,86743.0,86739.0,0.00035605]
[1766589725851,0.02312751,86749.0,86739.0,0.00035605]
[1766589726054,0.03444475,86750.0,86747.0,0.05763853]
[1766589726055,0.02291738,86750.0,86747.0,0.05763853]
[1766589726262,0.0116,86756.0,86750.0,0.00055]
[1766589726456,0.42646738,86751.0,86722.0,0.41794]
[1766589726726,0.02327365,86751.0,86740.0,0.00011]
[1766589726930,0.01152737,86750.0,86741.0,0.0116]
[1766589727564,0.06916511,86749.0,86741.0,0.0116]
[1766589727760,0.03480089,86751.0,86741.0,0.0116]
[1766589727964,0.01152764,86748.0,86741.0,0.0116]
[1766589728173,0.01152777,86747.0,86741.0,0.01105]
[1766589728532,0.03480089,86751.0,86741.0,0.01105]
[1766589728533,0.00035627,86751.0,86747.0,0.000549]
[1766589728663,0.05774087,86760.0,86752.0,0.01152711]
[1766589728664,0.00011,86760.0,86752.0,0.01152711]
[1766589728864,0.00011,86760.0,86748.0,0.0116]
[1766589728865,0.00011,86760.0,86750.0,0.05763686]
[1766589729066,0.00011,86760.0,86753.0,0.01152697]
[1766589729270,0.01152538,86765.0,86754.0,0.0116]
[1766589729477,0.01152671,86755.0,86740.0,0.0116387]
[1766589729674,0.02291738,86751.0,86741.0,0.02312857]
[1766589729855,0.01152751,86749.0,86741.0,0.0116]
[1766589730060,0.06916688,86747.0,86732.0,0.01152976]
[1766589730428,0.24207847,86749.0,86736.0,0.0116]
[1766589730429,0.0115279,86746.0,86736.0,0.0116]
[1766589730593,0.01152751,86749.0,86736.0,0.0116]
[1766589730792,0.02291738,86751.0,86737.0,0.06917457]
[1766589730996,0.02291738,86751.0,86736.0,0.02312923]
[1766589730997,0.02291738,86751.0,86744.0,0.01152817]
[1766589731203,0.02291738,86751.0,86745.0,0.0116]
[1766589731398,0.02291738,86751.0,86748.0,0.01152764]
[1766589731604,0.03444249,86767.0,86755.0,0.05763356]
[1766589731813,0.02291738,86766.0,86755.0,0.06923356]
[1766589732139,0.02291738,86766.0,86757.0,0.01152644]
[1766589732140,0.02196111,86766.0,86757.0,0.01152644]
[1766589732341,0.01152538,86765.0,86755.0,0.0116]
[1766589732540,0.02207111,86766.0,86755.0,0.01170682]
[1766589732699,0.03359636,86766.0,86755.0,0.01170682]
[1766589732882,0.06915471,86762.0,86755.0,0.01170682]
[1766589733087,0.01152631,86758.0,86743.0,0.0115283]
[1766589733286,0.03444449,86752.0,86742.0,0.04612]
[1766589733544,0.06916456,86750.0,86747.0,0.0116]
[1766589733865,0.01152737,86750.0,86748.0,0.0116]
[1766589734068,0.01152724,86751.0,86748.0,0.0116]
[1766589734266,0.01152751,86749.0,86748.0,0.0116]
[1766589734471,0.01152751,86749.0,86739.0,0.04612]
[1766589734472,0.0115283,86743.0,86739.0,0.04612]
[1766589734671,0.0115279,86746.0,86740.0,0.0116]
[1766589734848,0.0691654,86751.0,86740.0,0.0116]
[1766589735054,0.01152724,86751.0,86741.0,0.01152857]
[1766589735253,0.01152724,86751.0,86740.0,0.0231287]
[1766589735476,0.02302414,86752.0,86740.0,0.0231287]
[1766589735677,0.02302414,86752.0,86742.0,0.05764219]
[1766589735904,0.00010676,86752.0,86745.0,0.06916824]
[1766589736098,0.06915966,86756.0,86746.0,0.0116]
[1766589736383,0.03077959,86778.0,86746.0,0.0116]
[1766589736384,0.01152604,86760.0,86749.0,0.01152751]
[1766589736598,0.01152618,86759.0,86746.0,0.08076715]
[1766589736782,0.00011,86766.0,86749.0,0.01152751]
[1766589737034,0.00011,86766.0,86746.0,0.0116]
[1766589737035,0.00011,86766.0,86760.0,0.01152604]
[1766589737309,0.00011,86766.0,86761.0,0.0116]
[1766589737508,0.09206977,86765.0,86761.0,0.0116]
[1766589737664,0.03444276,86765.0,86761.0,0.0116]
[1766589737867,0.00011,86766.0,86761.0,0.0116]
[1766589738068,0.01152405,86775.0,86763.0,0.01152565]
[1766589738271,0.01152418,86774.0,86761.0,0.0116]
[1766589738494,0.06914786,86771.0,86761.0,0.02312591]
[1766589738694,0.06914786,86771.0,86761.0,0.00739974]
[1766589738695,0.05762854,86763.0,86761.0,0.00739974]
[1766589739041,0.01152578,86762.0,86751.0,0.00011]
[1766589739226,0.01152671,86755.0,86752.0,0.0116]
[1766589739451,0.01152578,86762.0,86752.0,0.0116]
[1766589739740,0.01152631,86758.0,86755.0,0.000549]
[1766589739942,0.01152631,86758.0,86752.0,0.0116]
[1766589740085,0.01152604,86760.0,86752.0,0.0116]
[1766589740288,0.01152671,86755.0,86752.0,0.0116]
[1766589740536,0.01152644,86757.0,86753.0,0.0116]
[1766589740737,0.05763499,86753.0,86743.0,0.04612]
[1766589740937,0.03444422,86754.0,86744.0,0.0116]
[1766589741141,0.0116,86762.0,86744.0,0.0116]
[1766589741142,0.01152604,86760.0,86746.0,0.0115279]
[1766589741361,0.0116,86762.0,86745.0,0.41794]
[1766589741362,0.01152671,86755.0,86745.0,0.41794]
[1766589741566,0.01152751,86749.0,86744.0,0.0116]
[1766589741810,0.01152751,86749.0,86743.0,0.00010676]
[1766589741811,0.0115279,86746.0,86743.0,0.00010676]
[1766589741996,0.05764286,86741.0,86740.0,0.00025515]
[1766589742202,0.01152711,86752.0,86741.0,0.001099]
[1766589742340,0.00011,86753.0,86742.0,0.05764215]
[1766589742547,0.00011,86753.0,86741.0,0.07026999]
[1766589742748,0.00011,86753.0,86740.0,0.01214012]
[1766589742749,0.00011,86753.0,86749.0,0.02291738]
[1766589742946,0.01152604,86760.0,86749.0,0.02291738]
[1766589743176,0.2508469,86770.0,86749.0,0.0920824]
[1766589743421,0.01152551,86764.0,86749.0,0.03444489]
[1766589743764,0.40355,86782.0,86761.0,0.01152591]
[1766589743917,0.40355,86782.0,86767.0,0.01152511]
[1766589743918,0.02312339,86780.0,86767.0,0.01152511]
[1766589744238,0.02312339,86780.0,86764.0,0.00055]
[1766589744239,0.06914434,86775.0,86768.0,0.0116]
[1766589744455,0.01152418,86774.0,86768.0,0.0116]
[1766589744911,0.01152445,86772.0,86768.0,0.0116]
[1766589745288,0.0001068,86772.0,86768.0,0.011051]
[1766589745485,0.01152458,86771.0,86768.0,0.011051]
[1766589745822,0.0001068,86772.0,86771.0,0.000549]
[1766589746019,0.0001068,86772.0,86768.0,0.011051]
[1766589746475,0.05772916,86772.0,86768.0,0.011051]
[1766589746708,0.06914751,86771.0,86768.0,0.011051]
[1766589746922,0.01152458,86771.0,86768.0,0.01093161]
[1766589747157,0.0001068,86772.0,86768.0,0.01093161]
[1766589747417,0.01152525,86766.0,86758.0,0.00011]
[1766589747623,0.0001068,86772.0,86744.0,0.04612]
[1766589747624,0.01152618,86759.0,86744.0,0.04612]
[1766589747836,0.05763688,86750.0,86740.0,0.41819515]
[1766589748043,0.05763557,86752.0,86750.0,0.012149]
[1766589748250,0.05763557,86752.0,86743.0,0.04612]
[1766589748251,0.06916027,86755.0,86751.0,0.0116]
[1766589748468,0.05763492,86753.0,86751.0,0.0116]
[1766589748672,0.05763512,86753.0,86751.0,0.0116]
[1766589748874,0.06916122,86754.0,86751.0,0.0116]
[1766589749291,0.06916108,86754.0,86751.0,0.0116]
[1766589749585,0.06916115,86754.0,86751.0,0.0116]
[1766589749793,0.06916114,86754.0,86751.0,0.0116]
[1766589750485,0.06915985,86756.0,86754.0,0.000549]
[1766589750989,0.05763311,86756.0,86754.0,0.000549]
[1766589751197,0.05763489,86753.0,86740.0,0.42972385]
[1766589751400,0.01152658,86756.0,86746.0,0.0115279]
[1766589751614,0.06915929,86757.0,86746.0,0.0115279]
[1766589751833,0.01152658,86756.0,86746.0,0.0115279]
[1766589752039,0.01152724,86751.0,86741.0,0.0116]
[1766589752246,0.01152697,86753.0,86741.0,0.08077143]
[1766589752446,0.06916204,86753.0,86742.0,0.01152844]
[1766589752658,0.01152711,86752.0,86741.0,0.0116]
[1766589752873,0.05764022,86745.0,86740.0,0.01185515]
[1766589753079,0.01152817,86744.0,86740.0,0.01185515]
[1766589753290,0.23055085,86749.0,86733.0,0.05775757]
[1766589753291,0.0115287,86740.0,86739.0,0.0116]
[1766589753498,0.0115283,86743.0,86740.0,0.000549]
[1766589753715,0.01152724,86751.0,86743.0,0.00055]
[1766589753944,0.01152724,86751.0,86739.0,0.02312883]
[1766589753945,0.01152644,86757.0,86739.0,0.0116]
[1766589754173,0.01152777,86747.0,86739.0,0.0116]
[1766589754399,0.06916508,86749.0,86739.0,0.0116]
[1766589754614,0.01152671,86755.0,86742.0,0.01152844]
[1766589754852,0.01152671,86755.0,86745.0,0.01152804]
[1766589755283,0.0115287,86740.0,86718.0,0.04612]
[1766589755498,0.05765017,86730.0,86720.0,0.0116]
[1766589755751,0.02291738,86727.0,86721.0,0.00046627]
[1766589755955,0.0115295,86734.0,86727.0,0.000549]
[1766589756169,0.02291738,86731.0,86727.0,0.000549]
[1766589756382,0.02291738,86731.0,86721.0,0.0119975]
[1766589756597,0.01152923,86736.0,86724.0,0.06918479]
[1766589756812,0.02291738,86733.0,86731.0,0.00055]
[1766589757054,0.0115291,86737.0,86725.0,0.0115307]
[1766589757270,0.01152897,86738.0,86728.0,0.0115303]
[1766589757487,0.05764498,86738.0,86726.0,0.05765258]
[1766589757702,0.01152937,86735.0,86724.0,0.0691846]
[1766589757915,0.0115291,86737.0,86735.0,0.000549]
[1766589758141,0.0115295,86734.0,86724.0,0.06918485]
[1766589758382,0.01153123,86721.0,86716.0,0.40445]
[1766589758578,0.01153123,86721.0,86712.0,0.0116]
[1766589758579,0.02291738,86719.0,86712.0,0.0116]
[1766589758719,0.09210688,86719.0,86712.0,0.0116]
[1766589758921,0.01153163,86718.0,86712.0,0.0116]
[1766589759148,0.02291738,86719.0,86717.0,0.00072922]
[1766589759550,0.02236838,86719.0,86712.0,0.0116]
[1766589759831,0.0116,86726.0,86720.0,0.01153136]
[1766589760026,0.01153083,86724.0,86712.0,0.00014448]
[1766589760230,0.01153083,86724.0,86700.0,0.01153402]
[1766589760231,0.01153216,86714.0,86700.0,0.01153402]
[1766589760470,0.05766065,86715.0,86699.0,0.0116]
[1766589760471,0.000144,86712.0,86703.0,0.01153362]
[1766589760656,0.000404,86708.0,86700.0,0.01153402]
[1766589760847,0.000404,86708.0,86698.0,0.01153429]
[1766589761069,0.01153296,86708.0,86697.0,0.01163442]
[1766589761271,0.01153362,86703.0,86697.0,0.0001]
[1766589761467,0.01153336,86705.0,86697.0,0.0001]
[1766589761674,0.01153362,86703.0,86697.0,0.0001]
[1766589761880,0.06920192,86703.0,86697.0,0.0001]
[1766589762077,0.01153375,86702.0,86697.0,0.0001]
[1766589762337,0.01153402,86700.0,86697.0,0.0001]
[1766589762510,0.02313336,86705.0,86697.0,0.0001]
[1766589762726,0.0116,86705.0,86697.0,0.0001]
[1766589762872,0.01153402,86700.0,86697.0,0.0001]
[1766589763257,0.05767123,86699.0,86697.0,0.0001]
[1766589763463,0.01153349,86704.0,86691.0,0.01153522]
[1766589763667,0.01153362,86703.0,86692.0,0.01153508]
[1766589763874,0.0116,86705.0,86688.0,0.00994548]
[1766589763875,0.000549,86692.0,86688.0,0.00994548]
[1766589764081,0.06921142,86691.0,86688.0,0.00994548]
[1766589764329,0.01153588,86686.0,86670.0,0.38313]
[1766589764532,0.01153628,86683.0,86674.0,0.0116]
[1766589764768,0.0116,86693.0,86674.0,0.39473]
[1766589765040,0.01153575,86687.0,86674.0,0.4639544]
[1766589765240,0.01153588,86686.0,86671.0,0.01153788]
[1766589765481,0.01153548,86689.0,86677.0,0.06922201]
[1766589765689,0.01153548,86689.0,86676.0,0.01153721]
[1766589765690,0.01153575,86687.0,86676.0,0.01153721]
[1766589765890,0.01153575,86687.0,86677.0,0.01153708]
[1766589766119,0.0576772,86690.0,86678.0,0.01153695]
[1766589766350,0.02324161,86693.0,86680.0,0.01153668]
[1766589766555,0.01153522,86691.0,86680.0,0.01153668]
[1766589766968,0.02324161,86693.0,86679.0,0.08196521]
[1766589766969,0.01153588,86686.0,86679.0,0.0116]
[1766589767171,0.01170666,86693.0,86679.0,0.0116]
[1766589767172,0.00010666,86693.0,86679.0,0.0116]
[1766589767372,0.00010666,86693.0,86680.0,0.38313]
[1766589767373,0.06921168,86691.0,86680.0,0.38313]
[1766589767563,0.05767646,86691.0,86680.0,0.38313]
[1766589767788,0.01153588,86686.0,86679.0,0.0116]
[1766589767948,0.00010666,86693.0,86684.0,0.01153615]
[1766589768153,0.38751,86708.0,86682.0,0.39466642]
[1766589768154,0.0116,86699.0,86682.0,0.39466642]
[1766589768355,0.05766547,86707.0,86682.0,0.45270431]
[1766589768516,0.01153442,86697.0,86682.0,0.38348605]
[1766589768723,0.01153442,86697.0,86685.0,0.01153602]
[1766589768724,0.01153455,86696.0,86685.0,0.01153602]
[1766589768939,0.06920758,86696.0,86686.0,0.0116]
[1766589769147,0.01153535,86690.0,86686.0,0.0116]
[1766589769358,0.01153508,86692.0,86686.0,0.0116]
[1766589769995,0.0120201,86686.0,86682.0,0.00035605]
[1766589770199,0.01153375,86702.0,86689.0,0.01153548]
[1766589770401,3.6e-06,86701.0,86690.0,0.02313535]
[1766589770541,0.01153402,86700.0,86690.0,0.02313535]
[1766589770742,3.6e-06,86701.0,86692.0,0.01153508]
[1766589770945,3.6e-06,86701.0,86691.0,0.05767611]
[1766589770946,0.01153176,86717.0,86702.0,0.01153375]
[1766589771168,0.01153176,86717.0,86690.0,0.46539565]
[1766589771169,0.23065124,86711.0,86700.0,0.0116]
[1766589771385,0.05756345,86695.0,86693.0,0.0116]
[1766589771552,0.01153455,86696.0,86693.0,0.0116]
[1766589771733,0.06920759,86696.0,86693.0,0.0116]
[1766589771940,0.01153495,86693.0,86688.0,0.0116]
[1766589772137,0.01153495,86693.0,86684.0,0.0116]
[1766589772372,0.01153482,86694.0,86684.0,0.02313615]
[1766589772646,0.01153495,86693.0,86684.0,0.0116]
[1766589772842,0.01153522,86691.0,86684.0,0.0116]
[1766589773056,0.01153535,86690.0,86684.0,0.0116]
[1766589773261,0.06921078,86692.0,86684.0,0.0116]
[1766589773449,0.06921386,86688.0,86684.0,0.0116]
[1766589773665,0.06921227,86690.0,86684.0,0.0116]
[1766589773869,0.06921463,86687.0,86684.0,0.0116]
[1766589774173,0.01153562,86688.0,86684.0,0.0116]
[1766589774399,0.38751,86716.0,86691.0,0.05767602]
[1766589774600,0.01153256,86711.0,86699.0,0.39466415]
[1766589774837,0.00011,86719.0,86699.0,0.39466415]
[1766589774838,0.01153229,86713.0,86702.0,0.01153375]
[1766589775040,0.01153216,86714.0,86704.0,0.01153349]
[1766589775265,0.08079229,86715.0,86700.0,0.02313402]
[1766589775266,0.01153296,86708.0,86700.0,0.0116]
[1766589775470,0.00055,86704.0,86693.0,0.01153495]
[1766589775675,0.06920112,86704.0,86694.0,0.01153482]
[1766589775890,0.02313296,86708.0,86700.0,0.00126835]
[1766589776117,0.01153362,86703.0,86697.0,0.01164]
[1766589776321,0.06920002,86706.0,86697.0,0.01164]
[1766589776538,0.01153336,86705.0,86702.0,0.00120491]
[1766589776736,0.06920002,86706.0,86697.0,0.01164]
[1766589777010,0.01153309,86707.0,86697.0,0.02317442]
[1766589777218,0.01153242,86712.0,86700.0,0.01153402]
[1766589777413,0.01153269,86710.0,86700.0,0.01153402]
[1766589777626,0.01153269,86710.0,86697.0,0.02317442]
[1766589777627,0.01153309,86707.0,86697.0,0.02317442]
[1766589777831,0.01153282,86709.0,86699.0,0.01153415]
[1766589777967,0.01153269,86710.0,86700.0,0.01153402]
[1766589778173,0.01164,86711.0,86701.0,0.06920335]
[1766589778395,0.01164,86711.0,86701.0,0.01153389]
[1766589778924,0.01164,86711.0,86702.0,0.01153375]
[1766589779129,0.01164,86712.0,86711.0,0.000549]
[1766589779329,0.00011,86719.0,86707.0,0.01153309]
[1766589779691,0.0115295,86734.0,86722.0,0.01153109]
[1766589779917,0.0115295,86734.0,86720.0,0.01153136]
[1766589779918,0.0115299,86731.0,86720.0,0.01153136]
[1766589780088,0.01153016,86729.0,86719.0,0.01153149]
[1766589780296,0.01153016,86729.0,86718.0,0.0692975]
[1766589780297,0.0115303,86728.0,86718.0,0.02317163]
[1766589780497,0.00010684,86729.0,86721.0,0.01153123]
[1766589780696,0.00010684,86729.0,86720.0,0.06918757]
[1766589781058,0.01153203,86715.0,86701.0,0.01153389]
[1766589781281,0.01164,86716.0,86703.0,0.01153362]
[1766589781481,0.01164,86716.0,86699.0,0.24232163]
[1766589781482,0.01164,86716.0,86708.0,0.01153296]
[1766589781605,0.01153096,86723.0,86711.0,0.01153256]
[1766589781810,0.01153096,86723.0,86716.0,0.000549]
[1766589781811,0.01153136,86720.0,86716.0,0.000549]
[1766589782011,0.0115307,86725.0,86711.0,0.01153256]
[1766589782343,0.00010684,86729.0,86706.0,0.01153322]
[1766589782344,0.01153203,86715.0,86706.0,0.01153322]
[1766589782664,0.01153096,86723.0,86705.0,0.01164]
[1766589782863,0.02317083,86724.0,86715.0,0.000549]
[1766589783039,0.01153056,86726.0,86715.0,0.01153203]
[1766589783249,0.01153123,86721.0,86711.0,0.01153256]
[1766589783765,0.01164,86723.0,86714.0,0.01153216]
[1766589783968,0.01153096,86723.0,86713.0,0.06919345]
[1766589784123,0.01164,86722.0,86715.0,0.01153203]
[1766589784471,0.01164,86722.0,86710.0,0.24218609]
[1766589784472,0.01153149,86719.0,86710.0,0.01153269]
[1766589784670,0.01153136,86720.0,86710.0,0.01153269]
[1766589784983,0.06918829,86720.0,86710.0,0.01153269]
[1766589785193,0.01153136,86720.0,86711.0,0.01153256]
[1766589785358,0.06918781,86721.0,86711.0,0.01153256]
[1766589785560,0.01153123,86721.0,86712.0,0.01153242]
[1766589785762,0.01153136,86720.0,86711.0,0.01153256]
[1766589786180,0.01153136,86720.0,86710.0,0.06919613]
[1766589786181,0.01153216,86714.0,86700.0,0.01153402]
[1766589786389,0.01153256,86711.0,86701.0,0.01153389]
[1766589786988,0.01153242,86712.0,86701.0,0.01153389]
[1766589787196,0.01153096,86723.0,86712.0,0.000549]
[1766589787391,0.01153056,86726.0,86719.0,0.00066581]
[1766589787651,0.0276807,86728.0,86705.0,0.4129]